Cogmind - Beta 13 @@@ ROGUE MODE // 2024.04.07 @ 14:21:04 Player: graour Result: Destroyed by H-71 Marshal with Heavy Mass Driver Performance ------------- Evolutions (7) 3500 Regions Visited (13) 2600 Robots Destroyed (89) 445 Value Destroyed (3785) 3785 Prototype IDs (2) 40 Alien Tech Used (0) 0 Bonus (802) 802 TOTAL SCORE: 11172 Bonus ------- High Alert Combat Kills 72 Follower Combat Kills 267 Entered Garrisons 200 Acquired ECA 300 Friendly Fire -37 Cogmind --------- Core Integrity 0/1300 Matter 195/300 Energy 98/100 System Corruption 5% Temperature Cool (0) Movement Core (50) Location -3/Research Parts ------- > --- POWER (2) -------- (None) > --- PROPULSION (6) --- (None) > --- UTILITY (9) ------ Improved Signal Interpreter Advanced Target Analyzer > --- WEAPON (4) ------- (None) > --- INVENTORY (5) ---- Micro Nuclear Core Micro Nuclear Core Fusion Compressor Terrain Scanner Point Defense Array Peak State ------------ > --- POWER ------------ Micro Nuclear Core Neutrino Core > --- PROPULSION ------- Flexi-carbon Leg Flexi-carbon Leg Flexi-carbon Leg Myomer Leg > --- UTILITY ---------- Cryofiber Web Large Storage Unit Improved Signal Interpreter Core Analyzer Core Analyzer Core Analyzer Advanced Particle Charger Point Defense Array Advanced Hacking Suite > --- WEAPON ----------- Dispersion Rifle Disruptor Cannon Matter Neutralizer Mass Driver > --- INVENTORY -------- Micro Nuclear Core Light Angular Momentum Engine Fusion Compressor Carbon-fiber Leg Myomer Leg Advanced Cooling System Terrain Scanner Long-range Terrain Scanner Encrypted Comm Array Gatling Laser Phase Cannon Gauss Rifle Heavy Mass Driver Great Maul [Rating: 104] Favorites ----------- Power Micro Nuclear Core Engine Light Angular Momentum Engine Power Core Micro Nuclear Core Reactor Micro Antimatter Reactor Propulsion Flexi-carbon Leg Leg Flexi-carbon Leg Wheel Compact Wheel Flight Unit Xenon Bombardment Thruster Utility Core Analyzer Device Cryofiber Web Storage Large Storage Unit Processor Core Analyzer Hackware Advanced Hacking Suite Weapon Gauss Rifle Energy Gun Small Laser Energy Cannon Phase Cannon Ballistic Gun Gauss Rifle Ballistic Cannon Mass Driver Launcher Rocket Launcher Special Weapon Mining Laser Impact Weapon Great Maul Build | -11 -10 -9 -9 -8 -7 -6 -5 -5 -5 -4 -4 -4 -3 ------- Run | Yrd Mat Mat Min Mat Fac Fac Fac Gar Fac Fac Upp Upp Res Slots Evolved 14 | . . 2 . 2 2 2 2 . . 2 . . 2 Power 1 | . . . . . . . 1 . . . . . . Propulsion 4 | . . . . 1 . . 1 . . . . . 2 Utility 7 | . . . . 1 2 2 . . . 2 . . . Weapon 2 | . . 2 . . . . . . . . . . . Parts Attached 165 | 9 4 8 4 16 13 15 4 21 13 15 24 . 19 Power 28 | 1 . 2 2 5 1 4 1 2 1 2 6 . 1 Engine 10 | 1 . 2 1 3 . 1 . 1 . . 1 . . Core 17 | . . . 1 2 1 3 1 1 1 2 5 . . Reactor 1 | . . . . . . . . . . . . . 1 Propulsion 46 | 4 2 1 . 5 1 4 1 10 4 5 4 . 5 Treads . | . . . . . . . . . . . . . . Leg 35 | 2 . . . 3 1 4 1 10 4 5 4 . 1 Wheel 8 | 2 2 1 . 2 . . . . . . . . 1 Hover . | . . . . . . . . . . . . . . Flight 3 | . . . . . . . . . . . . . 3 Utility 38 | 2 2 1 1 3 4 3 . 3 1 5 7 . 6 Device 24 | . 1 1 1 1 2 . . 3 1 3 6 . 5 Storage 3 | 2 1 . . . . . . . . . . . . Processor 9 | . . . . 2 2 3 . . . 1 . . 1 Hackware 2 | . . . . . . . . . . 1 1 . . Protection . | . . . . . . . . . . . . . . Artifact . | . . . . . . . . . . . . . . Weapon 53 | 2 . 4 1 3 7 4 2 6 7 3 7 . 7 Energy Gun 12 | 1 . 2 . 1 1 . . 1 2 2 2 . . Energy Cannon 7 | . . . . . . 1 1 . . 1 4 . . Ballistic Gun 21 | 1 . 1 . 1 3 2 1 4 3 . . . 5 Ballistic Cannon 2 | . . . . . . . . . 1 . 1 . . Launcher 4 | . . 1 . . 1 1 . 1 . . . . . Special Weapon 3 | . . . 1 . 1 . . . 1 . . . . Impact Weapon 4 | . . . . 1 1 . . . . . . . 2 Slashing Weapon . | . . . . . . . . . . . . . . Piercing Weapon . | . . . . . . . . . . . . . . Special Melee Weapon . | . . . . . . . . . . . . . . Unidentified Prototypes 2 | . . . 1 . . 1 . . . . . . . Corrupted Parts 3 | . . . . . 2 . . . . 1 . . . System Corruption 18 | . . . . . 10 . . . . 8 . . . Parts Lost 70 | . 1 . . 4 9 . . 7 2 3 19 3 22 Power 6 | . . . . . . . . . 1 1 2 . 2 Propulsion 18 | . . . . 1 3 . . 1 . . 6 1 6 Utility 20 | . 1 . . . 2 . . 3 . . 5 1 8 Weapon 26 | . . . . 3 4 . . 3 1 2 6 1 6 Highest Loss Streak 21 | . 1 . . 2 4 . . 2 2 2 8 3 21 To Critical Strikes . | . . . . . . . . . . . . . . Average Slot Usage (%) 91 | . 97 98 100 94 75 96 100 96 97 99 79 71 62 Engine 3 | . 14 11 6 3 . . 5 3 5 2 . . . Core 5 | . . . 4 5 7 5 5 7 3 7 9 10 6 Leg 13 | . . . . 11 18 16 23 22 23 21 13 9 7 Wheel 6 | . 27 22 22 14 . . . . . . . . . Device 10 | . 10 10 11 11 7 6 5 7 10 15 11 20 16 Storage 6 | . 15 11 11 9 7 6 5 5 5 5 5 5 3 Processor 15 | . . . . 6 8 33 29 24 23 21 18 10 10 Hackware 1 | . . . . . . . . . . 5 4 . . Energy Gun 8 | . 14 21 22 12 5 . . . 6 6 3 10 7 Energy Cannon 1 | . . . . . . 3 5 4 . 2 5 . . Ballistic Gun 10 | . 14 11 11 12 6 19 17 15 12 5 . . 2 Ballistic Cannon 1 | . . . . . . . . . 1 5 4 4 . Launcher 1 | . . 10 1 . 4 . . 1 . . . . . Special Weapon 1 | . . . 9 1 . . . . . . . . . Impact Weapon 1 | . . . . 6 7 2 . . . . . . 2 Naked Turns . | . . . . . . . . . . . . . . Heaviest Build 83 | 13 33 34 33 35 39 49 55 59 60 78 83 74 65 Greatest Support 85 | 32 32 32 32 48 35 55 68 68 70 85 85 20 48 Greatest Overweight (x) 22 | . 1 1 1 11 2 2 . 1 . . 22 3 7 Average Overweight (x) . | . . . . . . . . . . . 1 2 . Largest Inventory Capacity 15 | 8 15 15 15 15 15 15 15 15 15 15 15 15 15 Average Capacity 14 | 7 14 15 15 15 15 15 15 15 15 15 15 15 14 Most Carried 15 | 7 9 14 15 15 15 15 14 15 15 15 15 5 6 Average Carried 12 | 3 8 11 14 14 14 13 13 14 14 14 9 5 3 Final Capacity 15 | 8 15 15 15 15 15 15 15 15 15 15 15 15 5 Final Carried 15 | 7 9 14 15 15 14 15 14 15 15 15 5 5 5 Class Distribution -------------------- 37% | Scavenger-Gunner 17% | Gunner 16% | Scavenger-Skirmisher 15% | Mutant 6% | Skirmisher 4% | Hacker-Gunner Dominant Class ---------------- Mutant | -10/Materials Skirmisher | -9/Materials Scavenger-Skirmisher | -9/Mines Scavenger-Skirmisher | -8/Materials Mutant | -7/Factory Gunner | -6/Factory Scavenger-Gunner | -5/Factory Scavenger-Gunner | -5/Garrison Scavenger-Gunner | -5/Factory Scavenger-Gunner | -4/Factory Hacker-Gunner | -4/Upper Caves Scavenger-Gunner | -4/Upper Caves Scavenger-Gunner | -3/Research Resources | -11 -10 -9 -9 -8 -7 -6 -5 -5 -5 -4 -4 -4 -3 ----------- Run | Yrd Mat Mat Min Mat Fac Fac Fac Gar Fac Fac Upp Upp Res Matter Collected 3580 | 300 67 101 47 206 96 516 . 849 218 411 570 30 169 Remotely . | . . . . . . . . . . . . . . Salvage Created 4303 | 58 261 257 71 328 290 472 . 709 667 394 528 36 232 Parts 169 | 3 9 13 6 18 10 13 . 36 17 12 19 . 13 Haulers Intercepted . | . . . . . . . . . . . . . . Recyclers Shooed 7 | . 2 1 . . . 1 . . 2 1 . . . Parts Field Recycled . | . . . . . . . . . . . . . . Retrieved Matter . | . . . . . . . . . . . . . . Parts Self-Destructed 12 | . . . . . . . . . . . 12 . . Prevented 2 | . . . . . . . . . . . 2 . . Kills | -11 -10 -9 -9 -8 -7 -6 -5 -5 -5 -4 -4 -4 -3 ------- Run | Yrd Mat Mat Min Mat Fac Fac Fac Gar Fac Fac Upp Upp Res Combat Hostiles Destroyed 69 | . 4 6 2 6 7 4 . 15 4 6 10 . 5 Melee 2 | . . . . 1 1 . . . . . . . . Guns 42 | . 4 6 1 5 2 3 . 9 4 3 2 . 3 Cannons 16 | . . . 1 . . 1 . 4 . 2 8 . . AOE 4 | . . . . . 2 . . 2 . . . . . Classes Destroyed 16 | 1 1 3 . 3 1 1 . 4 . . 1 1 . Builder 3 | . . . . 1 . 1 . . . . . . 1 Tunneler 2 | . . . . 1 1 . . . . . . . . Recycler 9 | 1 1 1 . 1 . 2 . . 3 . . . . Operator 1 | . . . . . 1 . . . . . . . . Watcher 5 | . . 1 . 1 . 1 . . 1 1 . . . Swarmer 15 | . . 4 . 3 3 . . 3 . . . . 2 Grunt 25 | . 4 1 2 2 2 3 . 5 3 . 3 . . Brawler 1 | . . 1 . . . . . . . . . . . Duelist 1 | . . . . . . . . 1 . . . . . Sentry 6 | . . . . 1 2 . . 1 . 2 . . . Specialist 1 | . . . . . . . . 1 . . . . . Hunter 8 | . . . . . . 1 . 2 1 4 . . . Programmer 6 | . . . . . . . . 1 . . 2 . 3 Behemoth 2 | . . . . . . . . 1 . . 1 . . Decomposer 3 | . . . . . . . . . . . . 3 . Thug 1 | . . . . . . . . . . . 1 . . Fireman 3 | . . . . . . . . . . . 3 . . Best Kill Streak 5 | 1 3 4 2 4 3 4 . 5 2 2 3 . 3 Combat Bots Only 5 | . 2 4 2 3 3 3 . 5 2 2 3 . 2 Max Kills in Single Turn 2 | 1 1 1 1 1 1 2 . 2 1 1 1 1 1 Gunslinging . | . . . . . . . . . . . . . . Exploded 2 | . . . . . 1 . . 2 . . . . . Melee 1 | . . . . 1 1 . . . . . . . . Uniques/NPCs Destroyed . | . . . . . . . . . . . . . . Combat | -11 -10 -9 -9 -8 -7 -6 -5 -5 -5 -4 -4 -4 -3 -------- Run | Yrd Mat Mat Min Mat Fac Fac Fac Gar Fac Fac Upp Upp Res Hostile Shots Fired 800 | . 24 20 12 26 104 16 . 77 12 166 108 24 211 Missed 255 | . 5 5 2 6 33 4 . 21 3 76 20 8 72 Damage Taken 10212 | . 226 148 121 244 945 221 . 1435 167 1167 2053 364 3121 Core 2654 | . 59 40 22 13 161 38 . 171 . 203 546 49 1352 Absorbed by Shields . | . . . . . . . . . . . . . . Ignored by Resistances 55 | . . . . . . . . 55 . . . . . Core Remaining (%) 80 | 100 76 . 84 97 77 95 . . 82 . . 30 . Volleys Fired 270 | 10 32 24 6 23 23 20 . 39 16 26 29 3 19 Largest 4 | 1 2 3 4 4 3 4 . 4 4 4 4 3 3 Hottest 335 | 20 70 110 210 210 160 164 . 169 189 259 335 220 180 Shots Fired 769 | 10 64 71 18 64 38 73 . 132 60 95 82 10 52 Gun 629 | 10 64 71 15 63 32 60 . 104 60 65 26 7 52 Cannon 123 | . . . . . . 13 . 21 . 30 56 3 . Launcher 13 | . . . . . 6 . . 7 . . . . . Special 4 | . . . 3 1 . . . . . . . . . Kinetic 415 | 10 32 24 5 34 5 60 . 104 40 52 25 3 21 Thermal 311 | . 32 47 13 30 20 13 . 21 20 25 52 7 31 Explosive 13 | . . . . . 6 . . 7 . . . . . Electromagnetic 30 | . . . . . 7 . . . . 18 5 . . Robot Hit Streak 13 | 5 9 6 4 11 10 13 . 7 10 6 9 8 10 Robot Miss Streak 10 | 1 4 5 2 6 2 10 . 3 2 7 5 1 6 Penetration Max 1 | . . . . . . . . . 1 . . . . Secondary Targets 1 | . . . . . . . . . . . . . 1 Max Gunslinging Chain 1 | . . . . . . . . . . . . . 1 Shots Hit Robots 460 | 8 43 32 11 39 34 47 . 73 39 48 46 4 36 Core Hits 216 | 3 14 13 4 15 13 32 . 36 20 22 27 3 14 Critical Kills 4 | . . . . 1 . . . 1 . 1 1 . . Critical Parts Destroyed 9 | . . . . . 2 . . 2 1 2 1 . 1 Critical Strikes 22 | . . 1 . 1 3 . . 3 1 4 6 . 3 Burn 4 | . . 1 . . 1 . . . . . . . 2 Destroy 12 | . . . . 1 . . . 3 1 3 3 . 1 Blast 4 | . . . . . . . . . . 1 3 . . Smash 2 | . . . . . 2 . . . . . . . . Melee Attacks 15 | . . . . 5 9 1 . . . . . . . Impact 15 | . . . . 5 9 1 . . . . . . . Slashing . | . . . . . . . . . . . . . . Piercing . | . . . . . . . . . . . . . . Sneak Attacks 2 | . . . . 2 . . . . . . . . . Combat Hostiles . | . . . . . . . . . . . . . . Follow-up Attacks . | . . . . . . . . . . . . . . Damage Inflicted 9897 | 64 464 347 126 686 725 867 . 1719 752 1190 2028 65 864 Guns 6015 | 57 464 339 102 380 283 678 . 990 743 683 374 65 857 Cannons 2848 | . . . . . . 189 . 498 . 507 1654 . . Explosions 430 | . . . . . 199 . . 231 . . . . . Melee 525 | . . . . 282 243 . . . . . . . . Ramming 31 | 7 . 8 . . . . . . 9 . . . 7 Kinetic 4933 | 57 186 80 31 160 63 678 . 990 473 709 1095 . 411 Thermal 3692 | . 278 259 95 244 159 189 . 498 270 291 898 65 446 Explosive 430 | . . . . . 199 . . 231 . . . . . Electromagnetic 286 | . . . . . 61 . . . . 190 35 . . Impact 525 | . . . . 282 243 . . . . . . . . Slashing . | . . . . . . . . . . . . . . Piercing . | . . . . . . . . . . . . . . Highest Corruption 11 | . . . . . 10 . . 2 2 8 11 11 5 Average Corruption 5 | . . . . . 9 . . 1 2 8 10 11 4 Corruption Purged . | . . . . . . . . . . . . . . Corruption Blocked . | . . . . . . . . . . . . . . Effects 77 | . . . . . 4 . . 7 8 8 41 6 3 Message Errors 21 | . . . . . . . . 3 4 . 13 1 . Matter Fused 17 | . . . . . 1 . . 1 1 1 11 1 1 Heat Flow Errors 7 | . . . . . 1 . . . 2 1 . 3 . Energy Discharges 5 | . . . . . . . . 1 . 1 3 . . Parts Rejected 2 | . . . . . . . . 1 . . 1 . . Parts Fused 2 | . . . . . 1 . . . . . 1 . . Data Loss (minor) 6 | . . . . . . . . 1 . 1 3 . 1 Data Loss (major) 6 | . . . . . . . . . . 3 3 . . Misfires 2 | . . . . . . . . . . . 1 1 . Alerts 4 | . . . . . . . . . 1 1 2 . . Misdirections 1 | . . . . . . . . . . . 1 . . Weapon Failures 4 | . . . . . 1 . . . . . 2 . 1 Overload Shots . | . . . . . . . . . . . . . . Overflow Damage 538 | . . . . 154 149 . . 93 . . 142 . . Projectiles 155 | . . . . . . . . 13 . . 142 . . Explosions 100 | . . . . . 20 . . 80 . . . . . Melee 283 | . . . . 154 129 . . . . . . . . Knockbacks 11 | . . . . 1 2 . . . . 2 6 . . Impact 3 | . . . . 1 2 . . . . . . . . Kinetic 8 | . . . . . . . . . . 2 6 . . Secondary . | . . . . . . . . . . . . . . Self-Inflicted Damage 41 | . . 4 . . 3 . . 31 . . . . 3 Shots 2 | . . . . . 1 . . 1 . . . . . Rammed 2 | . . 1 . . . . . . . . . . 1 Targets Rammed 7 | 2 . 1 . . . . . . 3 . . . 1 Kicked 5 | 2 . . . . . . . . 3 . . . . Crushed . | . . . . . . . . . . . . . . Highest Temperature 1064 | . 225 319 358 147 261 504 . 432 142 277 1064 342 575 Average Temperature 184 | . 96 118 172 34 101 196 . 152 87 111 363 123 315 Received Heat Transfer 2109 | . 144 12 63 72 210 81 . 189 63 18 1101 84 72 Effects 71 | . . 2 . . 3 10 . 8 . 1 39 1 7 Shutdowns 13 | . . 1 . . . 1 . 3 . . 4 . 4 Energy Bleed 11 | . . 1 . . . . . 2 . 1 6 . 1 Interference 17 | . . . . . 3 6 . . . . 8 . . Matter Decay 5 | . . . . . . 1 . . . . 3 . 1 Short Circuit 6 | . . . . . . . . . . . 6 . . Damage (minor) 8 | . . . . . . 2 . . . . 5 1 . Damage (major) 7 | . . . . . . . . 3 . . 4 . . Damage (core) 4 | . . . . . . . . . . . 3 . 1 Siege Activations . | . . . . . . . . . . . . . . Robots Corrupted 1 | . . . . . . . . . . 1 . . . Combat Hostiles 1 | . . . . . . . . . . 1 . . . Parts Fried 7 | . . . . 6 1 . . . . . . . . Impact Corruptions 11 | . . . . 5 6 . . . . . . . . Robots Melted 2 | . . . . . . . . . . . . . 2 Combat Hostiles 2 | . . . . . . . . . . . . . 2 Parts Melted 18 | . 1 2 . . 4 . . 1 . 2 . . 8 Heat Transferred 6980 | . 814 768 224 549 460 222 . 592 518 481 1184 149 1019 Parts Sabotaged . | . . . . . . . . . . . . . . Parts Stolen . | . . . . . . . . . . . . . . Parts Stripped . | . . . . . . . . . . . . . . Power Chain Reactions . | . . . . . . . . . . . . . . Alert | -11 -10 -9 -9 -8 -7 -6 -5 -5 -5 -4 -4 -4 -3 ------- Run | Yrd Mat Mat Min Mat Fac Fac Fac Gar Fac Fac Upp Upp Res Peak Influence 554 | 5 149 244 137 165 205 153 51 554 434 324 . . 87 Initial 290 | . 3 62 94 . 14 100 37 35 290 126 . . . Average 152 | 2 53 163 79 47 111 85 37 321 304 199 . . 15 Maximum Alert Level 2 | . . 1 . . 1 . . 2 2 1 . . . Low Security (%) 68 | 100 100 47 100 100 87 100 100 21 . 59 . . 100 Level 1 24 | . . 52 . . 12 . . 35 89 40 . . . Level 2 7 | . . . . . . . . 43 10 . . . . Level 3 . | . . . . . . . . . . . . . . Level 4 . | . . . . . . . . . . . . . . Level 5 . | . . . . . . . . . . . . . . High Security . | . . . . . . . . . . . . . . Max Security . | . . . . . . . . . . . . . . Squads Dispatched 13 | . 1 1 . . 2 4 . . 1 1 . . 3 Investigation 3 | . 1 1 . . . . . . 1 . . . . Extermination 2 | . . . . . . 1 . . . . . . 1 Reinforcement 7 | . . . . . 2 3 . . . 1 . . 1 Assault 1 | . . . . . . . . . . . . . 1 Garrison . | . . . . . . . . . . . . . . Intercept . | . . . . . . . . . . . . . . Searches Triggered . | . . . . . . . . . . . . . . Construction Impeded 1 | . . . . . . 1 . . . . . . . Haulers Reinforced 1 | . . . . . . 1 . . . . . . . Active Scanning Responses . | . . . . . . . . . . . . . . Cargo Convoy Interrupts . | . . . . . . . . . . . . . . Stealth | -11 -10 -9 -9 -8 -7 -6 -5 -5 -5 -4 -4 -4 -3 --------- Run | Yrd Mat Mat Min Mat Fac Fac Fac Gar Fac Fac Upp Upp Res Distress Signals 3 | . 1 1 . . 1 . . . . . . . . Communications Jammed 3 | . . . . . . . . . . . . . 3 Distress Signals . | . . . . . . . . . . . . . . Times Spotted 122 | . 8 11 4 13 9 10 . 19 11 8 11 3 15 Peak Tracking Total 6 | . 3 4 2 3 4 3 . 3 3 3 4 3 6 Tactical Retreats 8 | . . . . 3 1 . . 1 1 . 1 . 1 Traps | -11 -10 -9 -9 -8 -7 -6 -5 -5 -5 -4 -4 -4 -3 ------- Run | Yrd Mat Mat Min Mat Fac Fac Fac Gar Fac Fac Upp Upp Res Traps Triggered 5 | . 1 . . . . . . 2 1 . . . 1 Indirectly . | . . . . . . . . . . . . . . Trap Hack Attempts . | . . . . . . . . . . . . . . Triggered . | . . . . . . . . . . . . . . Disarmed . | . . . . . . . . . . . . . . Reprogrammed . | . . . . . . . . . . . . . . Reused . | . . . . . . . . . . . . . . Traps Extracted . | . . . . . . . . . . . . . . Installed . | . . . . . . . . . . . . . . Triggered 1 | . . . . . . . . . . . . 1 . Machines | -11 -10 -9 -9 -8 -7 -6 -5 -5 -5 -4 -4 -4 -3 ---------- Run | Yrd Mat Mat Min Mat Fac Fac Fac Gar Fac Fac Upp Upp Res Machines Disabled 7 | . . . . . . 2 . 2 1 2 . . . Max in Single Turn 1 | . . . . . . 1 . . . 1 . . . Garrison Access 2 | . . . . . . . . . 1 . . . 1 Garrison Relay 1 | . . . . . . . . 1 . . . . . Phase Generator 1 | . . . . . . . . 1 . . . . . Machines Repaired . | . . . . . . . . . . . . . . Machines Dismantled . | . . . . . . . . . . . . . . Machines Sabotaged . | . . . . . . . . . . . . . . Overloaded Fab Kills . | . . . . . . . . . . . . . . Hacking | -11 -10 -9 -9 -8 -7 -6 -5 -5 -5 -4 -4 -4 -3 --------- Run | Yrd Mat Mat Min Mat Fac Fac Fac Gar Fac Fac Upp Upp Res Machines Accessed 15 | . 2 2 . 1 1 3 2 . 3 . . . 1 Terminals 11 | . 2 2 . 1 1 2 1 . 1 . . . 1 Fabricators 1 | . . . . . . 1 . . . . . . . Repair Stations . | . . . . . . . . . . . . . . Recycling Units . | . . . . . . . . . . . . . . Scanalyzers . | . . . . . . . . . . . . . . Garrison Access 3 | . . . . . . . 1 . 2 . . . . Total Hacks 28 | . 5 5 . 2 2 7 2 . 4 . . . 1 Successful 12 | . 2 1 . 1 . 4 1 . 2 . . . 1 Failed 16 | . 3 4 . 1 2 3 1 . 2 . . . . Catastrophic 3 | . 1 1 . . . . . . 1 . . . . Database Lockouts . | . . . . . . . . . . . . . . Manual 9 | . 5 1 . . 2 . 1 . . . . . . Terminals 23 | . 5 5 . 2 2 6 1 . 1 . . . 1 Fabricators 1 | . . . . . . 1 . . . . . . . Repair Stations . | . . . . . . . . . . . . . . Recycling Units . | . . . . . . . . . . . . . . Scanalyzers . | . . . . . . . . . . . . . . Garrison Access 4 | . . . . . . . 1 . 3 . . . . Terminal Hacks 8 | . . 1 . 1 . 4 . . 1 . . . 1 Record 1 | . . 1 . . . . . . . . . . . Open DSF 2 | . . . . . . . . . 1 . . . 1 Alert Level 1 | . . . . . . 1 . . . . . . . Unreport Threat 1 | . . . . 1 . . . . . . . . . Hauler Manifests 1 | . . . . . . 1 . . . . . . . Zone Layout 2 | . . . . . . 2 . . . . . . . Fabricator Hacks . | . . . . . . . . . . . . . . Repair Station Hacks . | . . . . . . . . . . . . . . Recycling Unit Hacks . | . . . . . . . . . . . . . . Scanalyzer . | . . . . . . . . . . . . . . Garrison Access Hacks 2 | . . . . . . . 1 . 1 . . . . Unlock Access 1 | . . . . . . . 1 . . . . . . Seal Access 1 | . . . . . . . . . 1 . . . . Unauthorized Hacks 2 | . 2 . . . . . . . . . . . . Terminals 2 | . 2 . . . . . . . . . . . . Track 1 | . 1 . . . . . . . . . . . . Assimilate 1 | . 1 . . . . . . . . . . . . Fabricators . | . . . . . . . . . . . . . . Repair Stations . | . . . . . . . . . . . . . . Recycling Units . | . . . . . . . . . . . . . . Scanalyzers . | . . . . . . . . . . . . . . Garrison Access . | . . . . . . . . . . . . . . Data Cores Recovered . | . . . . . . . . . . . . . . Used . | . . . . . . . . . . . . . . Hacking Detections 11 | . 2 2 . 1 1 3 1 . 1 . . . . Full Trace Events 2 | . . 1 . . . . . . 1 . . . . Feedback Events . | . . . . . . . . . . . . . . Feedback Blocked . | . . . . . . . . . . . . . . Robot Schematics Acquired . | . . . . . . . . . . . . . . Robots Built . | . . . . . . . . . . . . . . Authchips . | . . . . . . . . . . . . . . Time . | . . . . . . . . . . . . . . Total Robot Build Rating . | . . . . . . . . . . . . . . Part Schematics Acquired . | . . . . . . . . . . . . . . Parts Built . | . . . . . . . . . . . . . . Authchips . | . . . . . . . . . . . . . . Time . | . . . . . . . . . . . . . . Total Part Build Rating . | . . . . . . . . . . . . . . Parts Repaired . | . . . . . . . . . . . . . . Time . | . . . . . . . . . . . . . . Parts Recycled . | . . . . . . . . . . . . . . Recycled Matter . | . . . . . . . . . . . . . . Retrieved Matter . | . . . . . . . . . . . . . . Retrieved Components . | . . . . . . . . . . . . . . Parts Scanalyzed . | . . . . . . . . . . . . . . Part Schematics Acquired . | . . . . . . . . . . . . . . Parts Damaged . | . . . . . . . . . . . . . . Bothacking | -11 -10 -9 -9 -8 -7 -6 -5 -5 -5 -4 -4 -4 -3 ------------ Run | Yrd Mat Mat Min Mat Fac Fac Fac Gar Fac Fac Upp Upp Res Used RIF Installer . | . . . . . . . . . . . . . . Robots Hacked . | . . . . . . . . . . . . . . Non-combat . | . . . . . . . . . . . . . . Combat . | . . . . . . . . . . . . . . Robot Hacks Applied . | . . . . . . . . . . . . . . Relay Couplers Released 6 | . . . . . . . . 4 . . . . 2 Machine Destruction 6 | . . . . . . . . 4 . . . . 2 Fabnet Peak Effective % . | . . . . . . . . . . . . . . Robots Rewired 5 | . . . . . . 1 . 4 . . . . . Allies Hacked . | . . . . . . . . . . . . . . Hacks Repelled . | . . . . . . . . . . . . . . Allies | -11 -10 -9 -9 -8 -7 -6 -5 -5 -5 -4 -4 -4 -3 -------- Run | Yrd Mat Mat Min Mat Fac Fac Fac Gar Fac Fac Upp Upp Res Total Allies 6 | . . . 1 . . 1 . 4 . . . . . Largest Group 4 | . . . 1 . . 1 . 3 4 . . . . Highest-Rated Group 146 | . . . 31 . . 41 . 134 146 . . . . Highest-Rated Ally 116 | . . . 31 . . 41 . 116 110 . . . . Total Orders . | . . . . . . . . . . . . . . Ally Attacks 64 | . . . 3 . . 9 . 10 42 . . . . Total Damage 1998 | . . . 63 . . 372 . 714 849 . . . . Kills 13 | . . . 2 . . 3 . 3 5 . . . . Allies Corrupted . | . . . . . . . . . . . . . . Allies Melted . | . . . . . . . . . . . . . . Intel | -11 -10 -9 -9 -8 -7 -6 -5 -5 -5 -4 -4 -4 -3 ------- Run | Yrd Mat Mat Min Mat Fac Fac Fac Gar Fac Fac Upp Upp Res Robot Analysis Total . | . . . . . . . . . . . . . . Derelict Logs Recovered 2 | . . . 2 . . . . . . . . . . Drone Launches 2 | . . . . . . . . 2 . . . . . Drone Recoveries 2 | . . . . . . . . 2 . . . . . Exploration | -11 -10 -9 -9 -8 -7 -6 -5 -5 -5 -4 -4 -4 -3 ------------- Run | Yrd Mat Mat Min Mat Fac Fac Fac Gar Fac Fac Upp Upp Res Turns Passed 7161 | 102 357 358 819 489 355 839 51 900 765 544 964 161 457 Spaces Moved 4418 | 56 241 260 722 303 144 473 39 594 577 358 372 43 236 Core 93 | 4 . . . 1 . . . . . . 22 . 66 Treads . | . . . . . . . . . . . . . . Legs 2918 | 48 5 . . 127 144 473 39 594 577 358 350 43 160 Wheels 1402 | 4 236 260 722 175 . . . . . . . . 5 Hover . | . . . . . . . . . . . . . . Flight 5 | . . . . . . . . . . . . . 5 Fastest Speed 50 | 50 100 100 100 100 120 120 120 112 112 112 120 260 50 Average Speed 128 | 113 101 103 103 111 169 146 120 117 112 114 214 316 154 Slowest Speed 1150 | 120 120 115 115 600 260 260 120 190 112 120 1150 330 400 Overloaded Moves . | . . . . . . . . . . . . . . Propulsion Burnouts . | . . . . . . . . . . . . . . Robots Hopped . | . . . . . . . . . . . . . . Cave-ins Triggered 1 | . . . . . . . . 1 . . . . . Exploration Rate (%) 24 | 4 36 20 99 24 4 15 2 55 13 7 51 6 7 Regions Visited 13 Branch Regions 3 Pre-discovered Areas 2 | . . . 1 . . . . . . . 1 . . Known Exits Taken 5 | . . . . 1 . 1 1 . 1 1 . . . Unknown Exits Taken 7 | 1 1 1 1 . 1 . . . . . 1 1 . Scrap Searched 2 | . . . 1 . . . . . . . 1 . . Spaces Dug 2 | . . . 1 . . 1 . . . . . . . Terrain Destroyed 138 | . . . 1 . 31 5 . 69 . 7 22 3 . Melee 1 | . . . . . . 1 . . . . . . . Projectile 39 | . . . 1 . . 4 . 2 . 7 22 3 . AOE 98 | . . . . . 31 . . 67 . . . . . Terrain Rammed . | . . . . . . . . . . . . . . Walls Destroyed . | . . . . . . . . . . . . . . Machines Disabled . | . . . . . . . . . . . . . . Actions | -11 -10 -9 -9 -8 -7 -6 -5 -5 -5 -4 -4 -4 -3 --------- Run | Yrd Mat Mat Min Mat Fac Fac Fac Gar Fac Fac Upp Upp Res Total 5286 | 83 297 296 777 399 204 578 42 710 662 428 472 60 278 Wait 255 | . 13 1 37 33 11 37 . 16 34 19 38 15 1 Move 4403 | 56 240 259 721 302 143 472 38 590 576 357 371 42 236 Hop . | . . . . . . . . . . . . . . Pick Up 43 | 4 3 3 4 6 3 11 . 2 3 3 1 . . Fast Attach 63 | 9 2 . 1 8 6 3 . 6 5 4 6 . 13 Attach 49 | . 2 3 . 4 5 4 2 2 3 4 16 . 4 Detach 25 | 3 3 . . 4 1 1 . . 1 3 7 . 2 Swap 53 | . . 5 3 4 2 8 2 13 5 7 2 . 2 Drop 59 | . 2 . 5 10 2 13 . 12 10 5 . . . Fire 270 | 10 32 24 6 23 23 20 . 39 16 26 29 3 19 Melee 14 | . . . . 5 8 1 . . . . . . . Ram 2 | . . 1 . . . . . . . . . . 1 Kick 4 | 1 . . . . . . . . 3 . . . . Crush . | . . . . . . . . . . . . . . Escape Stasis 6 | . . . . . . . . 6 . . . . . Rewire 40 | . . . . . . 8 . 24 6 . 2 . . Trap . | . . . . . . . . . . . . . . Miscellaneous . | . . . . . . . . . . . . . . Route ------- -11/Scrapyard -10/Materials -9/Materials -9/Mines (discovered 2 exits: *Mat x2) -8/Materials -7/Factory -6/Factory -5/Factory -5/Garrison (discovered 2 exits: *Fac x2) -5/Factory -4/Factory -4/Upper Caves -4/Upper Caves -3/Research (discovered 1 exit: [*Tes]) History --------- Turn | Location | Event 68 | -11/Scrapyard | Discovered new exit (range 13) 103 | -11/Scrapyard | Entered Materials 308 | -10/Materials | Build established: Mutant 339 | -10/Materials | Discovered new exit (range 15) 460 | -10/Materials | Entered another Materials area 460 | -9/Materials | Evolved 2 slots: Weapon x2 804 | -9/Materials | Discovered new exit (range 15) 818 | -9/Materials | Entered Mines 881 | -9/Mines | Found a damaged Exp. Sensor Array with a note attached 883 | -9/Mines | Found Prototype Device 887 | -9/Mines | Learned location of Zion (-6) 902 | -9/Mines | Discovered new exit (range 8) 910 | -9/Mines | Received a Mining Laser from a helpful Derelict 923 | -9/Mines | Identified Exp. Sensor Array 945 | -9/Mines | Build established: Scavenger-Skirmisher 1218 | -9/Mines | Discovered new exit (range 15) 1444 | -9/Mines | Learned location of 1 exit from Lower Caves 1637 | -9/Mines | Entered Materials 1637 | -8/Materials | Evolved 2 slots: Propulsion x1, Utility x1 2117 | -8/Materials | Discovered new exit (range 4) 2124 | -8/Materials | Identified exit to Factory 2126 | -8/Materials | Entered Factory 2126 | -7/Factory | Evolved 2 slots: Utility x2 2271 | -7/Factory | Lost 4 parts (1n3w) 2342 | -7/Factory | System corruption reached 10% 2425 | -7/Factory | Discovered new exit (range 2) 2464 | -7/Factory | Lost 3 parts (2n1u) 2481 | -7/Factory | Entered another Factory area 2481 | -6/Factory | Evolved 2 slots: Utility x2 2724 | -6/Factory | Build established: Gunner 3130 | -6/Factory | Discovered new exit (range 7) 3138 | -6/Factory | Identified exit to Factory 3320 | -6/Factory | Entered another Factory area 3320 | -5/Factory | Evolved 2 slots: Power x1, Propulsion x1 3370 | -5/Factory | Identified exit to Garrison 3371 | -5/Factory | Entered Garrison 3381 | -5/Garrison | Phase Generator disabled 3396 | -5/Garrison | Triggered checkpoint 3550 | -5/Garrison | Build established: Scavenger-Gunner 3617 | -5/Garrison | Crushed by falling debris 3728 | -5/Garrison | Triggered checkpoint 3767 | -5/Garrison | Triggered checkpoint 3767 | -5/Garrison | Triggered checkpoint 3930 | -5/Garrison | Discovered new exit (range 3) 3932 | -5/Garrison | Identified exit to Factory 3942 | -5/Garrison | Spotted B-75 Beast 3962 | -5/Garrison | Rewired B-86 Titan 3982 | -5/Garrison | Destroyed B-75 Beast 4094 | -5/Garrison | Triggered checkpoint 4182 | -5/Garrison | Attempted to access garrison exit controls, blocked by remote lockdown 4204 | -5/Garrison | Triggered checkpoint 4244 | -5/Garrison | Discovered exit to Factory (range 6) 4271 | -5/Garrison | Entered Factory 4271 | -5/Factory | Accompanied by 4 allies 4616 | -5/Factory | Lost 3 allies 4948 | -5/Factory | Discovered new exit (range 9) 4960 | -5/Factory | Identified exit to Factory 5036 | -5/Factory | Entered another Factory area 5036 | -4/Factory | Evolved 2 slots: Utility x2 5451 | -4/Factory | Discovered new exit (range 16) 5579 | -4/Factory | Identified exit to Upper Caves 5580 | -4/Factory | Entered Upper Caves 5588 | -4/Upper Caves | System corruption reached 10% 5597 | -4/Upper Caves | Met a Warlord Commander 5598 | -4/Upper Caves | Learned location of Warlord (-4) 5599 | -4/Upper Caves | Warlord Commander delivered Encrypted Comm Array 5603 | -4/Upper Caves | Found Encrypted Comm Array 5699 | -4/Upper Caves | Spotted B-86 Titan 5704 | -4/Upper Caves | Build established: Gunner 5739 | -4/Upper Caves | Lost 3 parts (1n1u1w) 5756 | -4/Upper Caves | Destroyed B-86 Titan 5856 | -4/Upper Caves | Encountered a Warlord checkpoint 5991 | -4/Upper Caves | Lost 6 parts (2p2n1u1w) 6058 | -4/Upper Caves | Discovered new exit (range 13) 6121 | -4/Upper Caves | Build established: Hacker-Gunner 6142 | -4/Upper Caves | Ambushed by wild Derelicts 6172 | -4/Upper Caves | Core integrity fell below 50% 6249 | -4/Upper Caves | Lost 8 parts (2n3u3w) 6544 | -4/Upper Caves | Entered another Upper Caves area 6559 | -4/Upper Caves | Discovered new exit (range 11) 6705 | -4/Upper Caves | Entered Research 6705 | -3/Research | Evolved 2 slots: Propulsion x2 6725 | -3/Research | Lost 3 parts (1n1u1w) 7105 | -3/Research | Core integrity fell below 50% 7140 | -3/Research | Core integrity fell below 20% 7157 | -3/Research | Discovered new exit (range 13) 7162 | -3/Research | Destroyed by H-71 Marshal with Heavy Mass Driver Last Messages --------------- Adv. Transmission Jammer destroyed. Wall collapses. Slammed into Y-72 Warden. Lrg. Storage Unit destroyed. Penetrated by Slug. S-43 Plague destroyed. System corrupted: Matter fused (-10). Penetrated by Slug. Wheel destroyed. Penetrated by Slug. Slug penetrates Wall. Adv. Heat Sink destroyed. Connecting with DSF Access... Current location identified: Research Penetrated by Slug. Slug penetrates Wall. EXIT=FOUND Knocked back. Penetrated by Slug. [Achievement: 10k Club] Map ----- +----------------------------------------------------+ | | | | | | | | | | | | | | | | | | | | | | | | | | | | | | | | | ???????????????????????????????????? | | ???????????????????????????????????? | | ???????????????????????????????????? | | ????????????????????????????????#??? | | ???????????????????????????????????? | | ???????????????????????????????????? | | ??????????????????????????????#????? | | ?????????????????????????????????#?? | | ?????# ##############????????#???? | | ?????#!